[Event "45th FIDE Womens Olympiad 2024"]
[Site "Budapest"]
[Date "2024.09.12"]
[Round "2.125"]
[White "Shohradova, Lala"]
[Black "Borosova, Zuzana"]
[Result "0-1"]
[ECO "D35"]
[WhiteElo "2030"]
[BlackElo "2205"]
[Annotator "ChessBase"]
[PlyCount "90"]
[EventDate "2024.09.05"]
[EventType "team-tourn"]
[EventCountry "HUN"]
[SourceTitle "playchess.com"]
[Source "ChessBase"]
[SourceQuality "1"]
[WhiteTeam "Turkmenistan"]
[BlackTeam "Slovakia"]
[WhiteTeamCountry "TKM"]
[BlackTeamCountry "SVK"]
[TimeControl "40/5400+30:1800+30"]

1. d4 d5 2. c4 c6 3. Nc3 Nf6 4. Nf3 e6 5. Bg5 h6 6. Bh4 Be7 7. e3 Nbd7 8. cxd5 exd5 9. Bd3 Ne4 10. Bxe7 Qxe7 11. Qc2 f5 12. Rb1 a5 13. a3 O-O 14. O-O Qf6 15. b4 axb4 16. axb4 b5 17. Ne2 Bb7 18. Qb2 Rfe8 19. Ra1 Qe7 20. Rxa8 Rxa8 21. Ne5 Nb6 22. Ng3 Qf8 23. Ng6 Qf6 24. Nxf5 Re8 25. Nfh4 Bc8 26. Qe2 Be6 27. g3 Nc4 28. Ra1 Bf7 29. Bxc4 dxc4 30. Ne5 Rxe5 31. dxe5 Qxe5 32. Ra8+ Kh7 33. Nf3 Qc3 34. Qe1 Qb2 35. Nd4 c3 36. Ra1 Nxf2 37. Qxf2 Qxa1+ 38. Kg2 Bg6 39. Ne6 Be4+ 40. Kh3 Qb1 41. Qf7 Bf5+ 42. Kh4 Qe4+ 43. Nf4 c2 44. g4 c1=Q 45. gxf5 Qe1+ 0-1

[Event "45th FIDE Womens Olympiad 2024"]
[Site "Budapest"]
[Date "2024.09.12"]
[Round "2.126"]
[White "Mrvova, Alena"]
[Black "Agajanova, Meryem"]
[Result "0-1"]
[ECO "A08"]
[WhiteElo "2121"]
[BlackElo "2007"]
[Annotator "NA"]
[PlyCount "114"]
[EventDate "2024.09.05"]
[EventType "team-tourn"]
[EventCountry "HUN"]
[SourceTitle "playchess.com"]
[Source "ChessBase"]
[SourceQuality "1"]
[WhiteTeam "Slovakia"]
[BlackTeam "Turkmenistan"]
[WhiteTeamCountry "SVK"]
[BlackTeamCountry "TKM"]
[TimeControl "40/5400+30:1800+30"]

1. e4 e6 2. d3 d5 3. Nd2 Nf6 4. Ngf3 c5 5. g3 g6 6. Bg2 Bg7 7. O-O O-O 8. Re1 Nc6 9. Qe2 a5 10. Nf1 a4 11. a3 b5 12. e5 Nd7 13. Bf4 Ba6 14. h4 b4 15. c4 Nb6 16. Ne3 Ra7 17. cxd5 Nxd5 18. Bg5 f6 19. exf6 Nxf6 20. Ng4 Qd6 21. Nh6+ Kh8 22. Qxe6 Qxe6 23. Rxe6 Nd8 24. Rd6 Nb7 25. Rc6 Nd5 26. axb4 Bb5 27. Re6 Bxb2 28. Rae1 a3 29. Nd2 Nd8 30. Rd6 Nxb4 31. Bxd8 Nxd3 32. Re7 Rxe7 33. Bxe7 a2 34. Nb3 Re8 35. Bg5 c4 36. Bd5 Rf8 37. Be7 cxb3 38. Bxf8 a1=Q+ 39. Kh2 Be8 40. Rd8 Qe1 41. Nf7+ Bxf7 42. Bh6+ Qe8 43. Rxe8+ Bxe8 44. Bxb3 Nxf2 45. Bf4 Ng4+ 46. Kg2 Bc6+ 47. Kf1 Be5 48. Bxe5+ Nxe5 49. Be6 Kg7 50. Kf2 Kf6 51. Bc8 Bd7 52. Bb7 Kf5 53. Ba6 Kg4 54. Be2+ Kh3 55. Bf1+ Kh2 56. Ba6 Bc6 57. h5 gxh5 0-1

[Event "45th FIDE Womens Olympiad 2024"]
[Site "Budapest"]
[Date "2024.09.12"]
[Round "2.127"]
[White "Shohradova, Leyla"]
[Black "Bochnickova, Simona"]
[Result "0-1"]
[ECO "E01"]
[WhiteElo "1873"]
[BlackElo "2138"]
[Annotator "NA"]
[PlyCount "86"]
[EventDate "2024.09.05"]
[EventType "team-tourn"]
[EventCountry "HUN"]
[SourceTitle "playchess.com"]
[Source "ChessBase"]
[SourceQuality "1"]
[WhiteTeam "Turkmenistan"]
[BlackTeam "Slovakia"]
[WhiteTeamCountry "TKM"]
[BlackTeamCountry "SVK"]
[TimeControl "40/5400+30:1800+30"]

1. d4 Nf6 2. c4 e6 3. g3 d5 4. Bg2 Bb4+ 5. Bd2 Bd6 6. Nf3 O-O 7. Qc2 c6 8. O-O Nbd7 9. Nc3 dxc4 10. Bg5 Re8 11. Nd2 h6 12. Nxc4 Bc7 13. Bxf6 Nxf6 14. Rad1 Qe7 15. e4 b5 16. Ne3 Ba6 17. Rfe1 Rad8 18. Ne2 Ba5 19. Rf1 Bb6 20. e5 Nd5 21. Qxc6 b4 22. Qc2 Nxe3 23. fxe3 Rc8 24. Qd2 b3 25. axb3 Ba5 26. Nc3 Bxf1 27. Rxf1 Red8 28. Qd3 Qg5 29. Nb5 Qxe5 30. Nxa7 Rc5 31. Nc6 Rxc6 32. Bxc6 Qg5 33. Qe2 e5 34. Qf2 f6 35. d5 Bb6 36. Re1 f5 37. Kf1 f4 38. gxf4 exf4 39. Qg2 Qf6 40. exf4 Qxf4+ 41. Ke2 Qd4 42. d6 Rxd6 43. Be4 Qe3+ 0-1

[Event "45th FIDE Womens Olympiad 2024"]
[Site "Budapest"]
[Date "2024.09.12"]
[Round "2.128"]
[White "Walter, Ema"]
[Black "Rejepova, Jahan"]
[Result "1/2-1/2"]
[ECO "C01"]
[WhiteElo "2055"]
[BlackElo "1915"]
[Annotator "NA"]
[PlyCount "67"]
[EventDate "2024.09.05"]
[EventType "team-tourn"]
[EventCountry "HUN"]
[SourceTitle "playchess.com"]
[Source "ChessBase"]
[SourceQuality "1"]
[WhiteTeam "Slovakia"]
[BlackTeam "Turkmenistan"]
[WhiteTeamCountry "SVK"]
[BlackTeamCountry "TKM"]
[TimeControl "40/5400+30:1800+30"]

1. e4 e6 2. d4 d5 3. exd5 exd5 4. Nf3 Nf6 5. Bd3 Bd6 6. Qe2+ Be7 7. O-O O-O 8. Re1 Bd6 9. Bg5 Bg4 10. Nbd2 Nbd7 11. Qf1 c6 12. Ne5 Qc7 13. Nxg4 Nxg4 14. g3 h6 15. Qh3 Ndf6 16. Bxf6 Nxf6 17. Re3 Qb6 18. Nb3 a5 19. a4 Rae8 20. Rae1 Rxe3 21. Rxe3 Qb4 22. Rf3 Re8 23. Rxf6 gxf6 24. Qxh6 Re4 25. Bxe4 Qe1+ 26. Kg2 Qxe4+ 27. Kf1 Qxc2 28. Qxf6 Qxb3 29. Qg5+ Kh7 30. Qh5+ Kg7 31. Qg5+ Kh7 32. Qh5+ Kg7 33. Qg5+ Kh7 34. Qh5+ 1/2-1/2

[Event "45th FIDE Womens Olympiad 2024"]
[Site "Budapest"]
[Date "2024.09.12"]
[Round "2.129"]
[White "Cramling, Pia"]
[Black "Timergazi, Layla"]
[Result "1-0"]
[ECO "A30"]
[WhiteElo "2425"]
[BlackElo "1979"]
[Annotator "TA"]
[PlyCount "67"]
[EventDate "2024.09.05"]
[EventType "team-tourn"]
[EventCountry "HUN"]
[SourceTitle "playchess.com"]
[Source "ChessBase"]
[SourceQuality "1"]
[WhiteTeam "Sweden"]
[BlackTeam "New Zealand"]
[WhiteTeamCountry "SWE"]
[BlackTeamCountry "NZL"]
[TimeControl "40/5400+30:1800+30"]

{[%evp 18,67,0,-9,1,15,19,25,35,37,64,20,4,10,72,74,67,77,67,70,71,68,65,53,77,58,58,39,96,79,85,90,114,83,97,102,116,121,189,184,191,182,173,167,283,278,257,262,246,134,142,133]} 1. c4 Nf6 2. Nf3 c5 3. g3 b6 4. Bg2 Bb7 5. O-O g6 6. d3 Bg7 7. e4 d6 8. Nc3 O-O 9. h3 Nc6 10. Be3 Nd7 11. d4 cxd4 12. Nxd4 Rc8 {White has an edge.} 13. b3 Nc5 14. Rc1 Nxd4 15. Bxd4 f5 (15... Bh6 $11 {remains equal.}) 16. Bxg7 $16 Kxg7 17. exf5 {[#] Threatens to win with Bxb7.} Bxg2 18. Kxg2 Rxf5 19. Qd2 Qd7 20. Rce1 Rcf8 21. b4 Na6 22. Nd5 {[%cal Bc3d5,Bd5e3,Be3g2][%mdl 32]} e6 {[#]} (22... e5 $14) 23. Ne3 $1 Rf3 24. Rd1 {[%cal Oa2a3]} Qf7 {[%cal Oa6b4]} 25. Kg1 {[%cal Od2e2]} ({But not} 25. Qxd6 Rxf2+ 26. Kg1 h5 $14) 25... h5 26. Ng2 e5 27. Qxd6 Rxf2 (27... Qf6 $16) 28. Qxe5+ $18 Kh7 29. Rxf2 Qxf2+ 30. Kh2 Rf7 (30... Qf5 {was called for.} 31. Qxf5 Rxf5) 31. Rd8 Qf6 {Inhibits Rh8+.} 32. Qxf6 Rxf6 33. Rd7+ ({Better is} 33. a3 $18 {Rd7+ would now be deadly.} Kh6 34. Nf4) 33... Kh6 $16 34. a3 {Weighted Error Value: White=0.11 (very precise) /Black=0.23 (precise) .  Mistake:       	White=1     	Black=4      Inaccurate:     	White=1     	Black=1      OK:         	White=9     	Black=9      Best:        	White=4     	---        Strong:       	White=1     	---} ({Resist} 34. Rxa7 $6 Nxb4 35. Nf4 h4 $11) 1-0

[Event "45th FIDE Womens Olympiad 2024"]
[Site "Budapest"]
[Date "2024.09.12"]
[Round "2.130"]
[White "Zhang, Jasmine Haomo"]
[Black "Agrest, Inna"]
[Result "1/2-1/2"]
[ECO "E71"]
[WhiteElo "1956"]
[BlackElo "2197"]
[Annotator "ChessBase"]
[PlyCount "56"]
[EventDate "2024.09.05"]
[EventType "team-tourn"]
[EventCountry "HUN"]
[SourceTitle "playchess.com"]
[Source "ChessBase"]
[SourceQuality "1"]
[WhiteTeam "New Zealand"]
[BlackTeam "Sweden"]
[WhiteTeamCountry "NZL"]
[BlackTeamCountry "SWE"]
[TimeControl "40/5400+30:1800+30"]

1. d4 Nf6 2. c4 g6 3. Nc3 Bg7 4. e4 d6 5. h3 O-O 6. Be3 Nc6 7. Nge2 e5 8. d5 Nd4 9. Nxd4 exd4 10. Bxd4 Nxe4 11. Nxe4 Re8 12. f3 f5 13. Bxg7 Kxg7 14. Qd4+ Kg8 15. Bd3 fxe4 16. Bxe4 Qh4+ 17. Qf2 Rxe4+ 18. fxe4 Qxe4+ 19. Qe2 Qh4+ 20. Kd2 Qd4+ 21. Kc1 Bd7 22. Rd1 Qf4+ 23. Qd2 Qxc4+ 24. Qc2 Qf4+ 25. Qd2 Qc4+ 26. Qc2 Qf4+ 27. Qd2 Qc4+ 28. Qc2 Qf4+ 1/2-1/2

[Event "45th FIDE Womens Olympiad 2024"]
[Site "Budapest"]
[Date "2024.09.12"]
[Round "2.131"]
[White "Cramling Bellon, Anna"]
[Black "Ning, Isabelle Yixuan"]
[Result "1-0"]
[ECO "E92"]
[WhiteElo "2066"]
[BlackElo "1915"]
[Annotator "NA"]
[PlyCount "95"]
[EventDate "2024.09.05"]
[EventType "team-tourn"]
[EventCountry "HUN"]
[SourceTitle "playchess.com"]
[Source "ChessBase"]
[SourceQuality "1"]
[WhiteTeam "Sweden"]
[BlackTeam "New Zealand"]
[WhiteTeamCountry "SWE"]
[BlackTeamCountry "NZL"]
[TimeControl "40/5400+30:1800+30"]

1. d4 Nf6 2. c4 g6 3. Nc3 Bg7 4. e4 d6 5. h3 O-O 6. Nf3 e5 7. d5 a5 8. Bg5 Na6 9. Nd2 Qe8 10. Be2 Nd7 11. g4 Ndc5 12. Nb3 a4 13. Nxc5 Nxc5 14. Qd2 f5 15. gxf5 gxf5 16. Rg1 Kh8 17. Bh6 Bxh6 18. Qxh6 Qe7 19. f3 Qf6 20. Rg6 Qxg6 21. Qxf8+ Qg8 22. Qf6+ Qg7 23. Qd8+ Qg8 24. Qxg8+ Kxg8 25. h4 Bd7 26. Kd2 Rf8 27. Rg1+ Kh8 28. Ke3 fxe4 29. Nxe4 Nxe4 30. fxe4 Rf4 31. h5 h6 32. b4 axb3 33. axb3 Rh4 34. b4 Be8 35. Ra1 Bxh5 36. Bxh5 Rxh5 37. Ra8+ Kg7 38. Rc8 Rh3+ 39. Kf2 Rc3 40. Rxc7+ Kf6 41. c5 Rc4 42. cxd6 Rxe4 43. Rc8 Rf4+ 44. Ke3 Rd4 45. d7 Rxd5 46. d8=Q+ Rxd8 47. Rxd8 h5 48. Rh8 1-0

[Event "45th FIDE Womens Olympiad 2024"]
[Site "Budapest"]
[Date "2024.09.12"]
[Round "2.132"]
[White "Braganza, Nadia"]
[Black "Valcu, Lavinia"]
[Result "1/2-1/2"]
[ECO "A25"]
[WhiteElo "1890"]
[BlackElo "2076"]
[Annotator "NA"]
[PlyCount "78"]
[EventDate "2024.09.05"]
[EventType "team-tourn"]
[EventCountry "HUN"]
[SourceTitle "playchess.com"]
[Source "ChessBase"]
[SourceQuality "1"]
[WhiteTeam "New Zealand"]
[BlackTeam "Sweden"]
[WhiteTeamCountry "NZL"]
[BlackTeamCountry "SWE"]
[TimeControl "40/5400+30:1800+30"]

1. c4 e5 2. Nc3 Nc6 3. g3 Nf6 4. Bg2 Bc5 5. e3 d5 6. Nxd5 Nxd5 7. cxd5 Nb4 8. d3 Nxd5 9. Nf3 Qe7 10. O-O O-O 11. d4 exd4 12. Nxd4 Nf6 13. Nb3 Bb6 14. Qc2 Re8 15. Nd2 c6 16. b3 Bg4 17. Bb2 Rad8 18. Nc4 Bc7 19. Bd4 b5 20. Nb2 Be5 21. Bxe5 Qxe5 22. Nd3 Qf5 23. Nb4 Qxc2 24. Nxc2 c5 25. Bc6 Bd7 26. Bxd7 Rxd7 27. Na3 a6 28. Rad1 Red8 29. Rxd7 Rxd7 30. Rc1 Rd5 31. Nc2 Kf8 32. Ne1 Nd7 33. Nf3 Ke7 34. Kf1 c4 35. bxc4 Rc5 36. Nd2 Nb6 37. Ke2 bxc4 38. Rc3 Ke6 39. e4 a5 1/2-1/2

[Event "45th FIDE Womens Olympiad 2024"]
[Site "Budapest"]
[Date "2024.09.12"]
[Round "2.133"]
[White "Paulo, Jemima"]
[Black "Khamdamova, Afruza"]
[Result "0-1"]
[ECO "D58"]
[WhiteElo "2037"]
[BlackElo "2313"]
[Annotator "ChessBase"]
[PlyCount "73"]
[EventDate "2024.09.05"]
[EventType "team-tourn"]
[EventCountry "HUN"]
[SourceTitle "playchess.com"]
[Source "ChessBase"]
[SourceQuality "1"]
[WhiteTeam "Angola"]
[BlackTeam "Uzbekistan"]
[WhiteTeamCountry "ANG"]
[BlackTeamCountry "UZB"]
[TimeControl "40/5400+30:1800+30"]

1. c4 e6 2. Nc3 d5 3. d4 Nf6 4. Nf3 Be7 5. Bg5 h6 6. Bh4 O-O 7. e3 b6 8. Bd3 dxc4 9. Bxc4 Bb7 10. O-O a6 11. Qe2 Nbd7 12. Rfd1 b5 13. Bd3 Qe8 14. Rac1 c5 15. dxc5 Nxc5 16. Bxf6 Nxd3 17. Rxd3 Bxf6 18. e4 b4 19. Nd1 Qb5 20. Rd2 Qxe2 21. Rxe2 Rac8 22. Rxc8 Rxc8 23. Kf1 g5 24. Ke1 Rc1 25. Kd2 Ra1 26. Ne1 Rxa2 27. Kc2 Ra1 28. f3 Bc6 29. e5 Bg7 30. Nf2 a5 31. Ned3 Rg1 32. Ng4 Bf8 33. Rd2 a4 34. Ne3 Bb5 35. h3 Kg7 36. h4 gxh4 37. Nf4 0-1

[Event "45th FIDE Womens Olympiad 2024"]
[Site "Budapest"]
[Date "2024.09.12"]
[Round "2.134"]
[White "Yakubbaeva, Nilufar"]
[Black "Caxita, Esperanca"]
[Result "0-1"]
[ECO "B01"]
[WhiteElo "2248"]
[BlackElo "1932"]
[Annotator "ChessBase"]
[PlyCount "80"]
[EventDate "2024.09.05"]
[EventType "team-tourn"]
[EventCountry "HUN"]
[SourceTitle "playchess.com"]
[Source "ChessBase"]
[SourceQuality "1"]
[WhiteTeam "Uzbekistan"]
[BlackTeam "Angola"]
[WhiteTeamCountry "UZB"]
[BlackTeamCountry "ANG"]
[TimeControl "40/5400+30:1800+30"]

1. e4 d5 2. exd5 Qxd5 3. Nc3 Qd6 4. d4 Nf6 5. Nf3 a6 6. g3 Bg4 7. h3 Bh5 8. Bg2 Nc6 9. d5 Ne5 10. Bf4 Bxf3 11. Bxf3 Nxf3+ 12. Qxf3 e5 13. Qe2 Nd7 14. O-O-O Be7 15. Be3 O-O-O 16. g4 h6 17. Ne4 Qb4 18. f3 Nb6 19. a3 Qc4 20. Qxc4 Nxc4 21. Bf2 g6 22. Rd3 f5 23. Nc5 Bg5+ 24. Kb1 Nd2+ 25. Ka2 e4 26. fxe4 fxe4 27. Rd4 e3 28. Bg3 Rhe8 29. h4 Bf6 30. Rd3 Nc4 31. b3 Nb2 32. Ne6 Nxd3 33. Nxd8 Rxd8 34. cxd3 Rxd5 35. Rf1 Bc3 36. Rf8+ Rd8 37. Rf7 Rxd3 38. Rxc7+ Kd8 39. Rc4 e2 40. Bf2 Rf3 0-1

[Event "45th FIDE Womens Olympiad 2024"]
[Site "Budapest"]
[Date "2024.09.12"]
[Round "2.135"]
[White "Junior, Ednasia"]
[Black "Omonova, Umida"]
[Result "0-1"]
[ECO "A21"]
[WhiteElo "1888"]
[BlackElo "2032"]
[Annotator "NA"]
[PlyCount "60"]
[EventDate "2024.09.05"]
[EventType "team-tourn"]
[EventCountry "HUN"]
[SourceTitle "playchess.com"]
[Source "ChessBase"]
[SourceQuality "1"]
[WhiteTeam "Angola"]
[BlackTeam "Uzbekistan"]
[WhiteTeamCountry "ANG"]
[BlackTeamCountry "UZB"]
[TimeControl "40/5400+30:1800+30"]

1. c4 e5 2. Nc3 d6 3. g3 f5 4. Bg2 Nf6 5. e3 Be7 6. Nge2 O-O 7. O-O a5 8. b3 c6 9. Ba3 Be6 10. d4 Qc7 11. Rc1 Na6 12. Qd2 Rad8 13. e4 fxe4 14. Nxe4 Bf5 15. Nxf6+ Bxf6 16. d5 c5 17. Nc3 Qe7 18. Rce1 Bg5 19. f4 Bh6 20. Qe2 Nb4 21. fxe5 Bd3 22. Rxf8+ Rxf8 23. Qd1 Nc2 24. Bxc5 dxc5 25. d6 Qg5 26. Qxd3 Nxe1 27. Qe2 Qe3+ 28. Qxe3 Bxe3+ 29. Kh1 Nxg2 30. Kxg2 Bd4 0-1

[Event "45th FIDE Womens Olympiad 2024"]
[Site "Budapest"]
[Date "2024.09.12"]
[Round "2.136"]
[White "Malikova, Marjona"]
[Black "Pires, Luzia"]
[Result "1-0"]
[ECO "D35"]
[WhiteElo "2083"]
[BlackElo "1877"]
[Annotator "NA"]
[PlyCount "42"]
[EventDate "2024.09.05"]
[EventType "team-tourn"]
[EventCountry "HUN"]
[SourceTitle "playchess.com"]
[Source "ChessBase"]
[SourceQuality "1"]
[WhiteTeam "Uzbekistan"]
[BlackTeam "Angola"]
[WhiteTeamCountry "UZB"]
[BlackTeamCountry "ANG"]
[TimeControl "40/5400+30:1800+30"]

1. d4 d5 2. c4 e6 3. Nc3 Nf6 4. cxd5 exd5 5. Bg5 Be7 6. e3 O-O 7. Bd3 b6 8. Qc2 h6 9. Bh4 Ba6 10. Nf3 Bxd3 11. Qxd3 c6 12. Ne5 Ne4 13. Bxe7 Qxe7 14. Nxe4 dxe4 15. Qc4 c5 16. Ng6 Qg5 17. Nxf8 Kxf8 18. dxc5 Qxg2 19. O-O-O Qg5 20. cxb6 Nd7 21. Rxd7 axb6 1-0

[Event "45th FIDE Womens Olympiad 2024"]
[Site "Budapest"]
[Date "2024.09.12"]
[Round "2.137"]
[White "Dolgova, Olga"]
[Black "Cordero, Daniela"]
[Result "1/2-1/2"]
[ECO "D02"]
[WhiteElo "2171"]
[BlackElo "2017"]
[Annotator "ChessBase"]
[PlyCount "140"]
[EventDate "2024.09.05"]
[EventType "team-tourn"]
[EventCountry "HUN"]
[SourceTitle "playchess.com"]
[Source "ChessBase"]
[SourceQuality "1"]
[WhiteTeam "Norway"]
[BlackTeam "Bolivia"]
[WhiteTeamCountry "NOR"]
[BlackTeamCountry "BOL"]
[TimeControl "40/5400+30:1800+30"]

1. d4 e6 2. Bf4 d5 3. e3 Bd6 4. Nf3 Nf6 5. Ne5 O-O 6. Bd3 Ne4 7. f3 Bxe5 8. Bxe5 Nd6 9. Nd2 f6 10. Bg3 Nf5 11. Bf2 Nc6 12. c3 e5 13. O-O exd4 14. exd4 Nd6 15. Qc2 f5 16. Rfe1 Qf6 17. Bg3 Qh6 18. Be5 Nxe5 19. Rxe5 c6 20. Rae1 Bd7 21. Nf1 f4 22. b3 Rad8 23. Nd2 Nf7 24. R5e2 Ng5 25. c4 Qf6 26. Re5 dxc4 27. Qxc4+ Kh8 28. Qb4 Bc8 29. Bc4 Qg6 30. Kh1 b5 31. Bf1 Ne6 32. d5 cxd5 33. Bxb5 a6 34. Bc6 d4 35. Bd5 Rfe8 36. Be4 Qf6 37. Bd3 h6 38. Qb6 Qh4 39. Bf5 Qf2 40. R5e2 Qh4 41. h3 Nc7 42. Qxc7 Rxe2 43. Rxe2 Bxf5 44. Qf7 Rc8 45. Re8+ Rxe8 46. Qxe8+ Kh7 47. Qe5 Bd3 48. Kg1 Qg3 49. b4 Bb5 50. Qe4+ Kh8 51. Qa8+ Kh7 52. Qe4+ Kh8 53. Qa8+ Kh7 54. Qe4+ Kh8 55. a4 Bxa4 56. Nf1 Qg5 57. Qxd4 Bb5 58. Nd2 Qg3 59. Qe4 Qh4 60. Nb3 Qg3 61. Nd4 Bc4 62. Nf5 Qg5 63. h4 Qf6 64. Qxf4 Be6 65. Qb8+ Kh7 66. Ng3 Qd4+ 67. Kh2 Qxh4+ 68. Kg1 Qd4+ 69. Kh2 Qh4+ 70. Kg1 Qd4+ 1/2-1/2

[Event "45th FIDE Womens Olympiad 2024"]
[Site "Budapest"]
[Date "2024.09.12"]
[Round "2.138"]
[White "Monroy G., Nataly A."]
[Black "Koskela, Niina"]
[Result "0-1"]
[ECO "A46"]
[WhiteElo "1939"]
[BlackElo "2173"]
[Annotator "ChessBase"]
[PlyCount "90"]
[EventDate "2024.09.05"]
[EventType "team-tourn"]
[EventCountry "HUN"]
[SourceTitle "playchess.com"]
[Source "ChessBase"]
[SourceQuality "1"]
[WhiteTeam "Bolivia"]
[BlackTeam "Norway"]
[WhiteTeamCountry "BOL"]
[BlackTeamCountry "NOR"]
[TimeControl "40/5400+30:1800+30"]

1. d4 Nf6 2. Nf3 e6 3. Bg5 h6 4. Bf4 b6 5. h3 Bb7 6. e3 d6 7. Bd3 Be7 8. O-O O-O 9. Nbd2 Nbd7 10. Bh2 d5 11. c4 c5 12. Rc1 Rc8 13. b3 cxd4 14. exd4 Ba3 15. Rc2 Qe7 16. Nb1 Bd6 17. Bxd6 Qxd6 18. Nc3 a6 19. cxd5 Nxd5 20. Nxd5 Qxd5 21. Bc4 Qf5 22. Ne1 Nf6 23. Bd3 Qd5 24. Bc4 Qd6 25. a4 Rfd8 26. Rd2 Ne4 27. Rd3 b5 28. axb5 axb5 29. Bxb5 Nc3 30. Qh5 g6 31. Qxh6 Nxb5 32. Rg3 Qxd4 33. h4 Qg7 34. Qg5 Nc3 35. Re3 Ne4 36. Qe7 Bd5 37. Nf3 Qf8 38. Qa7 Qc5 39. Qa4 Ra8 40. Qd4 Qxd4 41. Nxd4 Ra2 42. f3 Ng3 43. Rd1 Nf5 44. Nxf5 gxf5 45. Rd4 Rc8 0-1

[Event "45th FIDE Womens Olympiad 2024"]
[Site "Budapest"]
[Date "2024.09.12"]
[Round "2.139"]
[White "Stanford, Sheila Barth"]
[Black "Yepez Montenegro, Gloria Luz"]
[Result "1-0"]
[ECO "C02"]
[WhiteElo "2175"]
[BlackElo "1818"]
[Annotator "ChessBase"]
[PlyCount "83"]
[EventDate "2024.09.05"]
[EventType "team-tourn"]
[EventCountry "HUN"]
[SourceTitle "playchess.com"]
[Source "ChessBase"]
[SourceQuality "1"]
[WhiteTeam "Norway"]
[BlackTeam "Bolivia"]
[WhiteTeamCountry "NOR"]
[BlackTeamCountry "BOL"]
[TimeControl "40/5400+30:1800+30"]

1. e4 e6 2. d4 d5 3. e5 c5 4. c3 Nc6 5. Nf3 Bd7 6. Bd3 cxd4 7. O-O dxc3 8. Nxc3 a6 9. Be3 Nge7 10. Bc5 Ng6 11. Bxf8 Nxf8 12. Re1 Ng6 13. g3 O-O 14. h4 f6 15. Bxg6 hxg6 16. Qd2 Qb6 17. Na4 Qa7 18. Rac1 fxe5 19. Ng5 e4 20. Nc5 Rad8 21. Qe3 Bc8 22. Ncxe6 Bxe6 23. Qxa7 Nxa7 24. Nxe6 Nc6 25. Nxd8 Rxd8 26. Re3 Rf8 27. Rc5 Rd8 28. f3 exf3 29. Rxf3 Ne5 30. Re3 Nc6 31. Kf2 Kf7 32. Ke1 Kf6 33. Kd2 Ne5 34. b3 Nc6 35. Rc1 g5 36. Rf1+ Kg6 37. Re6+ Kh7 38. hxg5 Nd4 39. Re7 Kg6 40. Rxb7 Ne6 41. Rb6 Re8 42. Re1 1-0

[Event "45th FIDE Womens Olympiad 2024"]
[Site "Budapest"]
[Date "2024.09.12"]
[Round "2.140"]
[White "Gareca Ordonez, Carla Angelica"]
[Black "Machlik, Monika"]
[Result "0-1"]
[ECO "A05"]
[WhiteElo "1778"]
[BlackElo "2109"]
[Annotator "NA"]
[PlyCount "66"]
[EventDate "2024.09.05"]
[EventType "team-tourn"]
[EventCountry "HUN"]
[SourceTitle "playchess.com"]
[Source "ChessBase"]
[SourceQuality "1"]
[WhiteTeam "Bolivia"]
[BlackTeam "Norway"]
[WhiteTeamCountry "BOL"]
[BlackTeamCountry "NOR"]
[TimeControl "40/5400+30:1800+30"]

1. Nf3 Nf6 2. g3 b5 3. Bg2 Bb7 4. b3 e6 5. Bb2 c5 6. O-O Be7 7. d3 d5 8. Nbd2 O-O 9. Re1 Nc6 10. c4 a6 11. Rc1 Qb6 12. cxd5 Nxd5 13. Ne4 Rac8 14. e3 Rfd8 15. Nfg5 h6 16. Nxf7 Kxf7 17. Qh5+ Kg8 18. Qg6 e5 19. Nxc5 Bf6 20. Be4 Nce7 21. Qh7+ Kf7 22. Nxb7 Qxb7 23. Bg2 Rxc1 24. Rxc1 Rc8 25. Re1 Qd7 26. d4 Ng6 27. Be4 Nde7 28. dxe5 Rh8 29. e6+ Qxe6 30. Qxh8 Nxh8 31. Bxf6 Qxe4 32. Bd4 Nc6 33. Bc5 Ne5 0-1

[Event "45th FIDE Womens Olympiad 2024"]
[Site "Budapest"]
[Date "2024.09.12"]
[Round "2.141"]
[White "Gong, Qianyun"]
[Black "Rogule, Laura"]
[Result "1/2-1/2"]
[ECO "B28"]
[WhiteElo "2250"]
[BlackElo "2248"]
[Annotator "ChessBase"]
[PlyCount "128"]
[EventDate "2024.09.05"]
[EventType "team-tourn"]
[EventCountry "HUN"]
[SourceTitle "playchess.com"]
[Source "ChessBase"]
[SourceQuality "1"]
[WhiteTeam "Singapore"]
[BlackTeam "Latvia"]
[WhiteTeamCountry "SIN"]
[BlackTeamCountry "LAT"]
[TimeControl "40/5400+30:1800+30"]

1. e4 c5 2. c3 d5 3. exd5 Qxd5 4. d4 e6 5. Nf3 a6 6. Be2 Nf6 7. O-O Nc6 8. Be3 cxd4 9. cxd4 Be7 10. Nc3 Qd6 11. Qd2 O-O 12. Bf4 Qd8 13. Rac1 b5 14. Rfd1 Bb7 15. Qe1 Rc8 16. Bf1 Nd5 17. Bg3 Nxc3 18. bxc3 Na5 19. Ne5 Ba3 20. Rc2 Bd5 21. Bd3 Nc4 22. Qe2 Nxe5 23. Bxe5 Qg5 24. Be4 Bxe4 25. Qxe4 Qg6 26. Qe2 Rc4 27. Rd3 f6 28. Bg3 Qf5 29. Re3 Kf7 30. Rd2 Qd5 31. Rdd3 Rfc8 32. h3 a5 33. Kh2 Bc1 34. Rf3 Ra4 35. Rd1 Ba3 36. Rb1 Rac4 37. Re3 a4 38. Qc2 g6 39. Qd2 R8c6 40. Rf3 Kg7 41. Qe2 Be7 42. Re3 Kf7 43. Qe1 Bd8 44. Rf3 Kg7 45. Bf4 Ba5 46. Bd2 Bc7+ 47. Kg1 g5 48. Rd3 Rb6 49. Qe2 Rcc6 50. Be3 Rb8 51. Rf1 h6 52. f4 Rf8 53. Bc1 Bd6 54. Rdf3 b4 55. cxb4 Bxb4 56. Be3 Be7 57. Qf2 Rc3 58. Re1 Ra3 59. Re2 Rd3 60. Re1 Ra3 61. Re2 Rd3 62. Re1 Ra3 63. Re2 Rd3 64. Re1 Ra3 1/2-1/2

[Event "45th FIDE Womens Olympiad 2024"]
[Site "Budapest"]
[Date "2024.09.12"]
[Round "2.142"]
[White "Ter-Avetisjana, Agnesa Stepania"]
[Black "Pang, Kay Yan Eden"]
[Result "0-1"]
[ECO "B54"]
[WhiteElo "2134"]
[BlackElo "1847"]
[Annotator "NA"]
[PlyCount "136"]
[EventDate "2024.09.05"]
[EventType "team-tourn"]
[EventCountry "HUN"]
[SourceTitle "playchess.com"]
[Source "ChessBase"]
[SourceQuality "1"]
[WhiteTeam "Latvia"]
[BlackTeam "Singapore"]
[WhiteTeamCountry "LAT"]
[BlackTeamCountry "SIN"]
[TimeControl "40/5400+30:1800+30"]

1. e4 c5 2. Nf3 e6 3. c4 d6 4. Nc3 Nc6 5. d4 cxd4 6. Nxd4 Be7 7. Be3 Nf6 8. Be2 O-O 9. O-O Nxd4 10. Qxd4 b6 11. Rad1 Bb7 12. f4 Re8 13. Bf3 Qc8 14. Qd3 Rd8 15. Qe2 Bc6 16. g4 Qb7 17. Qg2 a6 18. a4 Rac8 19. f5 Nd7 20. g5 exf5 21. Nd5 Bxd5 22. Rxd5 Ne5 23. Be2 Nxc4 24. Bd4 Ne5 25. Rxf5 Rc1+ 26. Bf1 Rdc8 27. Bc3 Ra1 28. Qf2 g6 29. Rf3 Nxf3+ 30. Qxf3 Rc5 31. Qd3 Rxd5 32. exd5 Qc8 33. b3 Qg4+ 34. Kf2 Ra2+ 35. Be2 Qf5+ 36. Qxf5 gxf5 37. Kf3 Bxg5 38. Bxa6 Rxh2 39. Bf1 Rh1 40. Kg2 Rh4 41. Bd3 Rg4+ 42. Kf3 Bh4 43. Bd2 Rd4 44. Ke2 Rxd5 45. Bc3 f4 46. Be4 Rg5 47. Bd4 d5 48. Bf3 Rg6 49. Kd3 Rd6 50. Be5 Re6 51. Bd4 Bf6 52. Bf2 d4 53. b4 Kg7 54. Kc4 Rd6 55. Be4 h5 56. a5 bxa5 57. bxa5 h4 58. Kc5 Rd8 59. a6 d3 60. a7 d2 61. Bf3 h3 62. Bg1 h2 63. Bxh2 Bd4+ 64. Kc4 Bxa7 65. Bd1 f3 66. Be5+ f6 67. Bg3 f2 68. Bxf2 Bxf2 0-1